[Event "WCCC U10 2019"]
[Site "Weifang"]
[Date "2019.08.24"]
[Round "4.3"]
[White "Xiong, Junyi"]
[Black "Mamedov, Edgar"]
[Result "0-1"]
[ECO "B15"]
[WhiteElo "1440"]
[BlackElo "1714"]
[Annotator "NA"]
[PlyCount "106"]
[EventDate "2019.08.21"]
[EventType "swiss"]
[EventCountry "CHN"]
[SourceTitle "playchess.com"]
[Source "ChessBase"]
[SourceQuality "1"]
[TimeControl "40/5400+30:1800+30"]

1. e4 {[%emt 0:00:00]} c6 {[%emt 0:00:13]} 2. d4 {[%emt 0:00:00]} d5 {[%emt 0:00:24]} 3. Nc3 {[%emt 0:00:00]} dxe4 {[%emt 0:00:22]} 4. Nxe4 {[%emt 0:00:00]} Nf6 {[%emt 0:00:11]} 5. Ng3 {[%emt 0:00:01]} Na6 {[%emt 0:08:02]} 6. Nf3 {[%emt 0:00:11]} Nc7 {[%emt 0:00:32]} 7. Be2 {[%emt 0:00:08]} Bg4 {[%emt 0:00:45]} 8. O-O {[%emt 0:00:09]} e6 {[%emt 0:00:49]} 9. c3 {[%emt 0:00:13]} Bd6 {[%emt 0:00:13]} 10. Bg5 {[%emt 0:00:08]} h6 {[%emt 0:09:18]} 11. Bxf6 {[%emt 0:00:32]} Qxf6 {[%emt 0:00:36]} 12. Ne5 {[%emt 0:01:18]} Bxe2 {[%emt 0:03:35]} 13. Qxe2 {[%emt 0:00:07]} Bxe5 {[%emt 0:08:50]} 14. dxe5 {[%emt 0:00:07]} Qe7 {[%emt 0:04:52]} 15. Qg4 {[%emt 0:01:36]} Qg5 {[%emt 0:05:15]} 16. Qxg5 {[%emt 0:00:14]} hxg5 {[%emt 0:00:07]} 17. Ne4 {[%emt 0:00:03]} g4 {[%emt 0:01:07]} 18. Nd6+ {[%emt 0:00:09]} Ke7 {[%emt 0:03:11]} 19. f3 {[%emt 0:01:08]} gxf3 {[%emt 0:18:10]} 20. Rxf3 {[%emt 0:00:09]} f5 {[%emt 0:01:12]} 21. Nxb7 {[%emt 0:00:49]} Rhb8 {[%emt 0:01:58]} 22. Na5 {[%emt 0:00:12]} Rxb2 {[%emt 0:00:29]} 23. Nxc6+ {[%emt 0:00:19]} Kf7 {[%emt 0:02:26]} 24. Rd1 {[%emt 0:00:14]} Nd5 {[%emt 0:00:31]} 25. c4 {[%emt 0:00:07]} Nb6 {[%emt 0:00:06]} 26. c5 {[%emt 0:10:10]} Nd5 {[%emt 0:01:26]} 27. Ra3 {[%emt 0:00:38]} a6 {[%emt 0:06:45]} 28. Nd4 {[%emt 0:00:15]} Nf4 {[%emt 0:00:32]} 29. Rg3 {[%emt 0:01:42]} Rd8 {[%emt 0:00:33]} 30. Kf1 {[%emt 0:00:26]} Rb4 {[%emt 0:00:23]} 31. Rxg7+ {[%emt 0:00:59]} Kxg7 {[%emt 0:04:13]} 32. Nxf5+ {[%emt 0:00:06]} exf5 {[%emt 0:00:44]} 33. Rxd8 {[%emt 0:00:05]} Rc4 {[%emt 0:00:20]} 34. Ra8 {[%emt 0:00:22]} Rc1+ {[%emt 0:01:06]} 35. Kf2 {[%emt 0:00:14]} Nd3+ {[%emt 0:00:22]} 36. Kg3 {[%emt 0:00:11]} Nxc5 {[%emt 0:00:30]} 37. Ra7+ {[%emt 0:00:23]} Kg6 {[%emt 0:00:15]} 38. e6 {[%emt 0:01:13]} Re1 {[%emt 0:01:18]} 39. e7 {[%emt 0:00:15]} Re6 {[%emt 0:02:50]} 40. h4 {[%emt 0:00:34]} Kf6 {[%emt 0:00:36]} 41. Rc7 {[%emt 0:30:53]} Nd3 {[%emt 0:31:16]} 42. Ra7 {[%emt 0:01:49]} Re3+ {[%emt 0:00:00]} 43. Kh2 {[%emt 0:00:00]} Rxe7 {[%emt 0:00:00]} 44. Rxa6+ {[%emt 0:00:00]} Ke5 {[%emt 0:00:00]} 45. h5 {[%emt 0:00:00]} Rh7 {[%emt 0:00:00]} 46. g4 {[%emt 0:00:00]} f4 {[%emt 0:00:00]} 47. Kg2 {[%emt 0:00:00]} Ke4 {[%emt 0:00:00]} 48. Re6+ {[%emt 0:00:00]} Ne5 {[%emt 0:00:00]} 49. h6 {[%emt 0:00:00]} Ra7 {[%emt 0:00:00]} 50. a4 {[%emt 0:00:00]} Rxa4 {[%emt 0:00:00]} 51. h7 {[%emt 0:00:00]} Ra8 {[%emt 0:00:00]} 52. g5 {[%emt 0:00:00]} Kf5 {[%emt 0:00:00]} 53. Rh6 {[%emt 0:00:00]} Rh8 {[%emt 0:08:19]} 0-1

[Event "WCCC U10 2019"]
[Site "Weifang"]
[Date "2019.08.24"]
[Round "4.4"]
[White "Vetokhin, Savva"]
[Black "Wei, Jianzhou"]
[Result "0-1"]
[ECO "C03"]
[WhiteElo "2016"]
[BlackElo "1656"]
[Annotator "NA"]
[PlyCount "80"]
[EventDate "2019.08.21"]
[EventType "swiss"]
[EventCountry "CHN"]
[SourceTitle "playchess.com"]
[Source "ChessBase"]
[SourceQuality "1"]
[TimeControl "40/5400+30:1800+30"]

1. e4 {[%emt 0:00:00]} e6 {[%emt 0:00:00]} 2. d4 {[%emt 0:00:00]} d5 {[%emt 0:00:00]} 3. Nd2 {[%emt 0:00:00]} Be7 {[%emt 0:00:00]} 4. Bd3 {[%emt 0:00:16]} c5 {[%emt 0:00:00]} 5. dxc5 {[%emt 0:00:30]} Nf6 {[%emt 0:00:05]} 6. Qe2 {[%emt 0:01:08]} O-O {[%emt 0:01:06]} 7. Ngf3 {[%emt 0:00:38] C03: French Tarrasch: Unusual Black 3rd moves} a5 {[%emt 0:00:03]} 8. O-O {[%emt 0:02:05]} Na6 {[%emt 0:00:11]} 9. e5 {[%emt 0:04:29]} Nd7 {[%emt 0:00:05]} 10. Nb3 {[%emt 0:00:16]} (10. c4 Ndxc5 11. Bb1 d4 12. Rd1 d3 13. Qe3 b6 14. Ne1 Bb7 15. Nxd3 {½-½ (57) Liang,A (2552)-So,W (2786) Saint Louis 2018}) 10... Naxc5 {[%emt 0:03:02]} 11. Nbd4 {[%emt 0:03:09]} Nxd3 {[%emt 0:07:26]} 12. cxd3 {[%emt 0:00:08]} Nc5 {[%emt 0:00:23]} 13. Bf4 {[%emt 0:02:50]} Bd7 {[%emt 0:04:16]} 14. g3 $146 {[%emt 0:02:13]} ({Predecessor:} 14. Rac1 Rc8 {1-0 (33) Zaragatski,I (2325)-Sielecki,C (2385) Germany 2003}) 14... b5 {[%emt 0:01:31]} 15. h4 {[%emt 0:00:54]} b4 {[%emt 0:04:00]} 16. Bg5 {[%emt 0:02:01]} Rc8 {[%emt 0:04:02]} 17. Bxe7 {[%emt 0:03:58]} Qxe7 {[%emt 0:00:02]} 18. Ng5 {[%emt 0:04:10]} f6 {[%emt 0:04:52]} 19. Ngf3 {[%emt 0:10:38]} Be8 {[%emt 0:01:47]} 20. Qe3 {[%emt 0:13:44]} Bg6 $11 {[%emt 0:11:56]} 21. Rfd1 {[%emt 0:09:36]} Qf7 {[%emt 0:04:06]} 22. Nb5 {[%emt 0:02:59]} Qd7 {[%emt 0:02:56]} 23. Nd6 {[%emt 0:01:45]} Rc7 {[%emt 0:02:18]} 24. Rac1 {[%emt 0:13:34]} Nxd3 {[%emt 0:02:22]} 25. Rxc7 {[%emt 0:01:00]} Qxc7 {[%emt 0:00:01]} 26. Rxd3 {[%emt 0:03:26]} Bxd3 {[%emt 0:00:13]} 27. Qxd3 {[%emt 0:00:04]} fxe5 {[%emt 0:00:08]} 28. Ng5 {[%emt 0:00:29]} e4 {[%emt 0:00:05]} 29. Ndxe4 {[%emt 0:00:11]} dxe4 {[%emt 0:05:42]} 30. Qxe4 {[%emt 0:00:05]} g6 {[%emt 0:00:14]} 31. Qxe6+ {[%emt 0:05:49]} Kh8 {[%emt 0:03:36]} 32. Qe3 {[%emt 0:01:05]} Rc8 {[%emt 0:11:42]} 33. Qe6 {[%emt 0:05:35]} Rf8 {[%emt 0:03:09]} 34. Qe3 {[%emt 0:00:07]} Rd8 {[%emt 0:01:52]} 35. Kh2 {[%emt 0:00:50]} Qd7 {[%emt 0:01:27]} 36. Qe5+ {[%emt 0:00:05]} Kg8 {[%emt 0:00:22]} 37. Ne4 {[%emt 0:00:27]} Qf5 {[%emt 0:02:00]} 38. Nf6+ {[%emt 0:01:22]} Kh8 {[%emt 0:00:04]} 39. Qe7 {[%emt 0:01:55]} Qxf2+ {[%emt 0:00:04]} 40. Kh3 {[%emt 0:00:05]} Qf1+ {[%emt 0:00:03]} 0-1

[Event "WCCC U10 2019"]
[Site "Weifang"]
[Date "2019.08.24"]
[Round "4.5"]
[White "Raghu Ram Reddy Seelam"]
[Black "Ilamparthi, A."]
[Result "0-1"]
[ECO "B76"]
[WhiteElo "1631"]
[BlackElo "1984"]
[Annotator "NA"]
[PlyCount "54"]
[EventDate "2019.08.21"]
[EventType "swiss"]
[EventCountry "CHN"]
[SourceTitle "playchess.com"]
[Source "ChessBase"]
[SourceQuality "1"]
[TimeControl "40/5400+30:1800+30"]

1. e4 {[%emt 0:00:06]} c5 {[%emt 0:00:00]} 2. Nf3 {[%emt 0:00:16]} d6 {[%emt 0:00:00]} 3. d4 {[%emt 0:00:13]} cxd4 {[%emt 0:00:00]} 4. Nxd4 {[%emt 0:00:15]} Nf6 {[%emt 0:00:00]} 5. Nc3 {[%emt 0:00:16]} g6 {[%emt 0:00:00]} 6. Be3 {[%emt 0:00:13]} Bg7 {[%emt 0:00:00]} 7. f3 {[%emt 0:00:08]} O-O {[%emt 0:00:00]} 8. Qd2 {[%emt 0:00:04]} Nc6 {[%emt 0:00:00]} 9. O-O-O {[%emt 0:00:06]} d5 {[%emt 0:00:00]} 10. Qe1 {[%emt 0:00:08]} e5 {[%emt 0:00:35]} 11. Nxc6 {[%emt 0:01:45]} bxc6 {[%emt 0:00:05]} 12. exd5 {[%emt 0:00:08]} Nxd5 {[%emt 0:00:06]} 13. Bc4 {[%emt 0:00:14]} Be6 {[%emt 0:00:07]} 14. Kb1 {[%emt 0:00:07]} Rb8 {[%emt 0:05:43]} 15. Ne4 {[%emt 0:03:30]} Qc7 {[%emt 0:01:08]} 16. Bc5 {[%emt 0:00:59]} Rfd8 {[%emt 0:01:36]} 17. g4 {[%emt 0:02:11]} h6 {[%emt 0:08:02]} 18. h4 {[%emt 0:17:49]} f5 {[%emt 0:19:17]} 19. gxf5 {[%emt 0:28:41]} gxf5 {[%emt 0:00:07]} 20. Nc3 {[%emt 0:06:41]} e4 $14 {[%emt 0:01:36]} 21. Kc1 {[%emt 0:13:31]} Qf4+ {[%emt 0:03:31]} 22. Be3 {[%emt 0:11:23]} Nxe3 {[%emt 0:00:28]} 23. Bxe6+ {[%emt 0:01:17]} Kh7 {[%emt 0:00:10]} 24. Rxd8 {[%emt 0:04:02]} Rxd8 {[%emt 0:00:07]} 25. Ne2 {[%emt 0:06:09]} Qe5 {[%emt 0:00:35]} 26. Qc3 {[%emt 0:00:25]} exf3 {[%emt 0:00:20]} 27. Ng3 {[%emt 0:02:03]} Qxe6 {[%emt 0:00:12]} 0-1

[Event "WCCC U10 2019"]
[Site "Weifang"]
[Date "2019.08.24"]
[Round "4.6"]
[White "Bharadia, Yash"]
[Black "Pham, Tran Gia Phuc"]
[Result "1/2-1/2"]
[ECO "B82"]
[WhiteElo "1963"]
[BlackElo "1645"]
[Annotator "NA"]
[PlyCount "106"]
[EventDate "2019.08.21"]
[EventType "swiss"]
[EventCountry "CHN"]
[SourceTitle "playchess.com"]
[Source "ChessBase"]
[SourceQuality "1"]
[TimeControl "40/5400+30:1800+30"]

1. e4 {[%emt 0:00:00]} c5 {[%emt 0:00:00]} 2. Nf3 {[%emt 0:00:02]} e6 {[%emt 0:00:00]} 3. d4 {[%emt 0:00:06]} cxd4 {[%emt 0:00:33]} 4. Nxd4 {[%emt 0:00:09]} a6 {[%emt 0:00:37]} 5. Nc3 {[%emt 0:00:13]} Qc7 {[%emt 0:00:49]} 6. Bd3 {[%emt 0:00:11]} Nf6 {[%emt 0:00:22]} 7. f4 {[%emt 0:00:51]} d6 {[%emt 0:01:27]} 8. Be3 {[%emt 0:00:16]} Be7 {[%emt 0:00:49] B82: Sicilian Scheveningen: 6 f4} (8... b5 9. Qf3 Bb7 10. g4 Nc6 11. g5 Nd7 12. a3 b4 13. axb4 Nxb4 14. O-O g6 15. Qh3 Bg7 16. f5 gxf5 17. exf5 Bxd4 18. Bxd4 e5 {0-1 (51) Bartel,M (2649)-Smirin,I (2676) Warsaw 2016}) 9. Qf3 {[%emt 0:00:16]} Nbd7 {[%emt 0:01:53]} 10. g4 {[%emt 0:02:08]} Nc5 {[%emt 0:01:13]} 11. g5 {[%emt 0:04:42]} Nfd7 {[%emt 0:02:23]} 12. Rc1 {[%emt 0:07:42]} Qb6 $146 {[%emt 0:06:50]} ({Predecessor:} 12... b5 13. b4 Nb7 14. Nb1 Nb6 15. O-O O-O 16. a4 Nxa4 {1-0 (32) Haring,V (2105)-Jurasek,V (1859) Prague 2016}) 13. Nb3 {[%emt 0:06:14]} h6 {[%emt 0:06:48]} 14. g6 {[%emt 0:03:50]} fxg6 {[%emt 0:01:53]} 15. Rg1 {[%emt 0:05:10]} O-O {[%emt 0:01:39]} 16. Ke2 {[%emt 0:04:29]} Qd8 $2 {[%emt 0:01:56]} ({Better is} 16... Nxd3 $11 17. Bxb6 Nxf4+ 18. Kd1 Nxb6) 17. Qg3 {[%emt 0:04:39]} Nxd3 {[%emt 0:02:29]} 18. cxd3 {[%emt 0:01:44]} Qe8 {[%emt 0:16:04]} 19. Qxg6 {[%emt 0:11:47]} Qxg6 {[%emt 0:00:59]} 20. Rxg6 {[%emt 0:00:12]} Kf7 $16 {[%emt 0:01:07]} (20... Rf7 $14) 21. Rg2 {[%emt 0:12:12]} Rg8 {[%emt 0:13:55]} 22. d4 {[%emt 0:04:20]} b5 {[%emt 0:01:22]} 23. Na5 {[%emt 0:04:28]} Bd8 {[%emt 0:02:42]} 24. Nc6 {[%emt 0:02:07]} Bb7 {[%emt 0:00:19]} 25. d5 {[%emt 0:08:31]} Nf6 {[%emt 0:05:50]} 26. dxe6+ {[%emt 0:01:58]} Kxe6 {[%emt 0:00:06]} 27. Nd4+ {[%emt 0:09:00]} Kf7 {[%emt 0:00:44]} 28. Nf5 {[%emt 0:00:43]} Be7 {[%emt 0:01:07]} 29. Nxe7 {[%emt 0:00:59]} Kxe7 {[%emt 0:01:07]} 30. Rgg1 {[%emt 0:02:01]} Ke6 {[%emt 0:06:14]} 31. f5+ {[%emt 0:02:02]} Kd7 {[%emt 0:00:19]} 32. Bd4 {[%emt 0:00:32]} Rae8 {[%emt 0:01:21]} 33. Bxf6 {[%emt 0:00:14]} gxf6 {[%emt 0:00:07]} 34. Rxg8 {[%emt 0:00:54]} Rxg8 {[%emt 0:00:31]} 35. Kf3 {[%emt 0:00:09]} Rg5 {[%emt 0:05:52]} 36. Kf2 {[%emt 0:00:58]} b4 {[%emt 0:00:36]} 37. Na4 {[%emt 0:01:30]} Bxe4 {[%emt 0:00:07]} 38. Nb6+ {[%emt 0:00:10]} Kd8 {[%emt 0:00:18]} 39. Rc8+ {[%emt 0:00:06]} Ke7 {[%emt 0:00:09]} 40. Rc7+ {[%emt 0:00:06]} Ke8 {[%emt 0:00:09]} 41. Nc4 {[%emt 0:31:13]} Kd8 {[%emt 0:34:36]} 42. Ra7 {[%emt 0:00:00]} Rxf5+ {[%emt 0:00:00]} 43. Ke3 {[%emt 0:00:00]} d5 {[%emt 0:00:00]} 44. Nd6 {[%emt 0:00:00]} Rf3+ {[%emt 0:00:00]} 45. Kd4 {[%emt 0:00:00]} Rd3+ {[%emt 0:00:00]} 46. Kc5 {[%emt 0:00:00]} Rd2 {[%emt 0:00:00]} 47. Nf7+ {[%emt 0:00:00]} Ke8 {[%emt 0:00:00]} 48. Nxh6 {[%emt 0:00:00]} Rxh2 {[%emt 0:00:00]} 49. Ng4 {[%emt 0:00:00]} Rc2+ {[%emt 0:00:00]} 50. Kd6 {[%emt 0:00:00]} f5 {[%emt 0:00:00]} 51. Nf6+ {[%emt 0:01:06]} Kd8 {[%emt 0:00:00]} 52. Ra8+ {[%emt 0:00:55]} Rc8 {[%emt 0:00:00]} 53. Ra7 {[%emt 0:00:12]} Rc2 {[%emt 0:00:00]} 1/2-1/2

[Event "WCCC U10 2019"]
[Site "Weifang"]
[Date "2019.08.24"]
[Round "4.7"]
[White "Juhanak, Daniel"]
[Black "Wongso, Steve"]
[Result "0-1"]
[ECO "E69"]
[WhiteElo "1526"]
[BlackElo "1765"]
[Annotator "NA"]
[PlyCount "54"]
[EventDate "2019.08.21"]
[EventType "swiss"]
[EventCountry "CHN"]
[SourceTitle "playchess.com"]
[Source "ChessBase"]
[SourceQuality "1"]
[TimeControl "40/5400+30:1800+30"]

1. d4 {[%emt 0:00:00]} Nf6 {[%emt 0:00:00]} 2. c4 {[%emt 0:00:00]} g6 {[%emt 0:00:00]} 3. g3 {[%emt 0:00:20]} Bg7 {[%emt 0:00:00]} 4. Bg2 {[%emt 0:00:26]} O-O {[%emt 0:00:19]} 5. Nf3 {[%emt 0:00:38]} d6 {[%emt 0:00:18]} 6. O-O {[%emt 0:00:45]} Nbd7 {[%emt 0:00:06]} 7. Nc3 {[%emt 0:00:43]} e5 {[%emt 0:00:17]} 8. e4 {[%emt 0:00:44]} c6 {[%emt 0:00:25]} 9. h3 {[%emt 0:01:43]} Qb6 {[%emt 0:00:25]} 10. Rb1 {[%emt 0:13:01]} Qb4 {[%emt 0:28:42]} 11. Qd3 {[%emt 0:17:29]} exd4 {[%emt 0:00:00]} 12. Qxd4 {[%emt 0:01:47]} Nb6 {[%emt 0:02:38]} 13. Bf4 {[%emt 0:19:02]} Ne8 {[%emt 0:08:03]} 14. Qd3 {[%emt 0:20:04]} Nxc4 {[%emt 0:10:09]} 15. a3 {[%emt 0:00:45]} Nxb2 {[%emt 0:01:21]} 16. axb4 {[%emt 0:03:45]} Nxd3 {[%emt 0:00:08]} 17. Bd2 {[%emt 0:00:13]} Nc7 {[%emt 0:05:12]} 18. Ne1 {[%emt 0:00:45]} Ne5 {[%emt 0:00:15]} 19. Bf4 {[%emt 0:01:06]} Be6 {[%emt 0:00:32]} 20. Nc2 {[%emt 0:01:33]} Nc4 {[%emt 0:06:21]} 21. Ne2 {[%emt 0:00:48]} Nb5 {[%emt 0:00:08]} 22. Rfd1 {[%emt 0:00:39]} a5 {[%emt 0:00:58]} 23. bxa5 {[%emt 0:00:47]} Rxa5 {[%emt 0:00:11]} 24. Ncd4 {[%emt 0:00:26]} Bxd4 {[%emt 0:00:21]} 25. Nxd4 {[%emt 0:01:26]} Nc3 {[%emt 0:00:52]} 26. Rdc1 {[%emt 0:00:50]} Nxb1 {[%emt 0:00:14]} 27. Rxb1 {[%emt 0:00:03]} Rfa8 {[%emt 0:01:21]} 0-1

[Event "WCCC U10 2019"]
[Site "Weifang"]
[Date "2019.08.24"]
[Round "4.8"]
[White "Zhang, Lichen"]
[Black "Mayank Chakraborty"]
[Result "0-1"]
[ECO "A18"]
[WhiteElo "1482"]
[BlackElo "1731"]
[Annotator "NA"]
[PlyCount "172"]
[EventDate "2019.08.21"]
[EventType "swiss"]
[EventCountry "CHN"]
[SourceTitle "playchess.com"]
[Source "ChessBase"]
[SourceQuality "1"]
[TimeControl "40/5400+30:1800+30"]

1. c4 {[%emt 0:00:00]} Nf6 {[%emt 0:00:00]} 2. Nc3 {[%emt 0:00:30]} e6 {[%emt 0:00:10]} 3. e4 {[%emt 0:00:57]} d5 {[%emt 0:00:23]} 4. e5 {[%emt 0:00:42]} d4 {[%emt 0:00:14]} 5. exf6 {[%emt 0:00:37]} dxc3 {[%emt 0:00:09]} 6. bxc3 {[%emt 0:00:09]} Qxf6 {[%emt 0:00:08]} 7. Nf3 {[%emt 0:00:42]} c5 {[%emt 0:00:51]} 8. d4 {[%emt 0:03:43]} h6 {[%emt 0:00:53]} 9. Be2 {[%emt 0:02:30]} cxd4 {[%emt 0:02:12]} 10. cxd4 {[%emt 0:00:29]} Bb4+ {[%emt 0:00:19]} 11. Bd2 {[%emt 0:00:24]} Bxd2+ {[%emt 0:00:15]} 12. Qxd2 {[%emt 0:00:19]} O-O {[%emt 0:00:19]} 13. O-O {[%emt 0:00:11]} Rd8 {[%emt 0:01:21]} 14. Qe3 {[%emt 0:01:57]} Nc6 {[%emt 0:02:59]} 15. Rfd1 {[%emt 0:02:05]} b6 {[%emt 0:03:05]} 16. Ne5 {[%emt 0:05:21]} Bb7 {[%emt 0:04:39]} 17. Bf3 {[%emt 0:01:59]} Nxe5 {[%emt 0:00:13]} 18. dxe5 {[%emt 0:01:16]} Qe7 {[%emt 0:00:02]} 19. Bxb7 {[%emt 0:02:03]} Qxb7 {[%emt 0:00:05]} 20. c5 {[%emt 0:03:42]} bxc5 {[%emt 0:03:49]} 21. Qxc5 {[%emt 0:01:44]} Qb2 {[%emt 0:01:56]} 22. Rdb1 {[%emt 0:05:55]} Qd2 {[%emt 0:01:43]} 23. g3 {[%emt 0:01:55]} Rd5 {[%emt 0:03:49]} 24. Qc7 {[%emt 0:00:55]} Qd4 {[%emt 0:00:45]} 25. Qb7 {[%emt 0:00:55]} Rad8 {[%emt 0:00:21]} 26. Re1 {[%emt 0:09:31]} Qc5 {[%emt 0:03:17]} 27. Rac1 {[%emt 0:04:53]} Qa5 {[%emt 0:03:50]} 28. Re2 {[%emt 0:00:32]} Qa3 {[%emt 0:09:48]} 29. Rce1 {[%emt 0:04:32]} g6 {[%emt 0:09:40]} 30. Qb3 {[%emt 0:03:04]} Qc5 {[%emt 0:00:54]} 31. Qe3 {[%emt 0:01:54]} Qxe3 {[%emt 0:01:04]} 32. Rxe3 {[%emt 0:00:17]} Ra5 {[%emt 0:00:01]} 33. R3e2 {[%emt 0:02:10]} Rdd5 {[%emt 0:00:33]} 34. f4 {[%emt 0:01:58]} g5 {[%emt 0:00:11]} 35. Kg2 {[%emt 0:01:10]} Kg7 {[%emt 0:00:34]} 36. fxg5 {[%emt 0:02:16]} hxg5 {[%emt 0:01:42]} 37. g4 {[%emt 0:00:34]} Ra4 {[%emt 0:00:25]} 38. h3 {[%emt 0:00:41]} Rd3 {[%emt 0:00:13]} 39. Rf1 {[%emt 0:06:11]} Raa3 {[%emt 0:00:04]} 40. Rf6 {[%emt 0:00:23]} Rg3+ {[%emt 0:01:41]} 41. Kf1 {[%emt 0:30:36]} Rac3 {[%emt 0:34:02]} 42. Rb2 {[%emt 0:03:15]} Rxh3 {[%emt 0:00:15]} 43. Rb7 {[%emt 0:01:24]} Rhf3+ {[%emt 0:00:02]} 44. Kg2 {[%emt 0:01:56]} Rxf6 {[%emt 0:00:02]} 45. exf6+ {[%emt 0:00:07]} Kxf6 {[%emt 0:00:15]} 46. Rxa7 {[%emt 0:00:04]} Rc4 {[%emt 0:00:27]} 47. Kg3 {[%emt 0:01:10]} Kg6 {[%emt 0:00:20]} 48. Ra6 {[%emt 0:00:23]} Rc3+ {[%emt 0:00:06]} 49. Kf2 {[%emt 0:00:39]} Kf6 {[%emt 0:00:17]} 50. Ra7 {[%emt 0:00:11]} Rc4 {[%emt 0:01:05]} 51. Kg3 {[%emt 0:00:09]} Re4 {[%emt 0:00:01]} 52. a4 {[%emt 0:00:36]} Kg6 {[%emt 0:00:08]} 53. Ra8 {[%emt 0:01:37]} f5 {[%emt 0:00:35]} 54. Rg8+ {[%emt 0:02:37]} Kh6 {[%emt 0:00:21]} 55. gxf5 {[%emt 0:00:46]} exf5 {[%emt 0:00:10]} 56. a5 {[%emt 0:01:05]} Re3+ {[%emt 0:00:08]} 57. Kf2 {[%emt 0:00:17]} Ra3 {[%emt 0:00:01]} 58. Rh8+ {[%emt 0:00:27]} Kg6 {[%emt 0:00:01]} 59. Rg8+ {[%emt 0:01:02]} Kh5 {[%emt 0:00:02]} 60. Ra8 {[%emt 0:00:16]} f4 {[%emt 0:00:11]} 61. a6 {[%emt 0:00:46]} Kg4 {[%emt 0:00:20]} 62. a7 {[%emt 0:01:22]} Ra2+ {[%emt 0:00:08]} 63. Kf1 {[%emt 0:01:16]} Kf3 {[%emt 0:00:03]} 64. Ke1 {[%emt 0:00:27]} Ra1+ {[%emt 0:00:07]} 65. Kd2 {[%emt 0:00:18]} g4 {[%emt 0:00:05]} 66. Kd3 {[%emt 0:00:28]} g3 {[%emt 0:00:07]} 67. Kd2 {[%emt 0:00:56]} g2 {[%emt 0:00:02]} 68. Rg8 {[%emt 0:00:50]} Ra2+ {[%emt 0:00:04]} 69. Ke1 {[%emt 0:00:22]} Rxa7 {[%emt 0:00:02]} 70. Kd2 {[%emt 0:00:47]} Ra2+ {[%emt 0:00:05]} 71. Kd3 {[%emt 0:00:07]} Ra1 {[%emt 0:00:06]} 72. Rxg2 {[%emt 0:00:11]} Ra3+ {[%emt 0:00:29]} 73. Kd4 {[%emt 0:00:12]} Kxg2 {[%emt 0:00:09]} 74. Ke4 {[%emt 0:00:17]} Ra4+ {[%emt 0:00:03]} 75. Kd3 {[%emt 0:00:07]} f3 {[%emt 0:00:05]} 76. Ke3 {[%emt 0:00:06]} Ra3+ {[%emt 0:00:08]} 77. Kd4 {[%emt 0:01:45]} f2 {[%emt 0:00:05]} 78. Ke5 {[%emt 0:00:05]} Ra4 {[%emt 0:00:04]} 79. Kd5 {[%emt 0:00:07]} f1=Q {[%emt 0:00:11]} 80. Ke5 {[%emt 0:00:07]} Qb5+ {[%emt 0:00:06]} 81. Kd6 {[%emt 0:00:06]} Ra6+ {[%emt 0:00:05]} 82. Kc7 {[%emt 0:00:03]} Qb6+ {[%emt 0:00:07]} 83. Kc8 {[%emt 0:00:18]} Ra8+ {[%emt 0:00:08]} 84. Kd7 {[%emt 0:00:09]} Ra7+ {[%emt 0:00:03]} 85. Kc8 {[%emt 0:00:05]} Qb7+ {[%emt 0:00:01]} 86. Kd8 {[%emt 0:00:10]} Qb8# {[%emt 0:00:03]} 0-1

[Event "WCCC U10 2019"]
[Site "Weifang"]
[Date "2019.08.24"]
[Round "4.9"]
[White "Sodbileg, Uranjargal"]
[Black "Hvozdz, Aliaksandr"]
[Result "0-1"]
[WhiteElo "1419"]
[BlackElo "1699"]
[Annotator "NA"]
[PlyCount "20"]
[EventDate "2019.08.21"]
[EventType "swiss"]
[EventCountry "CHN"]
[SourceTitle "playchess.com"]
[Source "ChessBase"]
[SourceQuality "1"]
[TimeControl "40/5400+30:1800+30"]

1. e4 {[%emt 0:00:00]} c6 {[%emt 0:00:00]} 2. d4 {[%emt 0:00:24]} d5 {[%emt 0:00:00]} 3. exd5 {[%emt 0:00:40]} cxd5 {[%emt 0:00:03]} 4. Bd3 {[%emt 0:00:51]} Nc6 {[%emt 0:00:19]} 5. c3 {[%emt 0:00:14]} Nf6 {[%emt 0:00:11]} 6. Bf4 {[%emt 0:01:02]} Bg4 {[%emt 0:00:23]} 7. Ne2 {[%emt 0:00:35]} e6 {[%emt 0:01:10]} 8. O-O {[%emt 0:01:32]} Be7 {[%emt 0:00:58]} 9. f3 {[%emt 0:03:07]} Bh5 {[%emt 0:00:14]} 10. Re1 {[%emt 0:01:17]} Qb6 {[%emt 0:02:56]} 0-1